[Event "Late-Titled-Tuesday-Blitz-August-29-2023"]
[Site "Chess.com"]
[Date "2023.08.29"]
[Round "2"]
[White "Haykoooo0o"]
[Black "Cluke86"]
[Result "0-1"]
[WhiteElo "2459"]
[BlackElo "2271"]
[TimeControl "180+1"]
[EndTime "14:19:25 PDT"]
[Termination "Cluke86 won by resignation"]

1. d4 {[%clk 0:03:00.9]} 1... Nf6 {[%clk 0:02:55.1]} 2. Nf3 {[%clk 0:03:01.4]}
2... d5 {[%clk 0:02:54.7]} 3. e3 {[%clk 0:03:01.3]} 3... Bf5 {[%clk 0:02:51.7]}
4. Bd3 {[%clk 0:03:01]} 4... e6 {[%clk 0:02:51]} 5. Bxf5 {[%clk 0:03:00.9]} 5...
exf5 {[%clk 0:02:50.1]} 6. Qd3 {[%clk 0:03:01.8]} 6... Qc8 {[%clk 0:02:46.7]} 7.
c4 {[%clk 0:03:00.4]} 7... c6 {[%clk 0:02:45.4]} 8. Bd2 {[%clk 0:02:54.7]} 8...
dxc4 {[%clk 0:02:43.4]} 9. Qxc4 {[%clk 0:02:54.7]} 9... Ne4 {[%clk 0:02:43]} 10.
Bb4 {[%clk 0:02:52.2]} 10... Qe6 {[%clk 0:02:30.5]} 11. Qxe6+ {[%clk 0:02:46.1]}
11... fxe6 {[%clk 0:02:30.3]} 12. Bxf8 {[%clk 0:02:47]} 12... Rxf8 {[%clk
0:02:28.5]} 13. Nbd2 {[%clk 0:02:47.8]} 13... Nxd2 {[%clk 0:02:26.4]} 14. Kxd2
{[%clk 0:02:48.1]} 14... Nd7 {[%clk 0:02:21.2]} 15. Rhc1 {[%clk 0:02:47.3]}
15... Ke7 {[%clk 0:02:19.5]} 16. b4 {[%clk 0:02:43]} 16... Kd6 {[%clk
0:02:13.5]} 17. a4 {[%clk 0:02:40.6]} 17... a5 {[%clk 0:02:10.8]} 18. Rab1
{[%clk 0:02:10.8]} 18... b6 {[%clk 0:01:59.3]} 19. b5 {[%clk 0:02:03.1]} 19...
c5 {[%clk 0:01:59.3]} 20. Ke2 {[%clk 0:01:56.8]} 20... Rac8 {[%clk 0:01:48.6]}
21. Rd1 {[%clk 0:01:51.3]} 21... c4 {[%clk 0:01:41.6]} 22. Kd2 {[%clk
0:01:34.8]} 22... h6 {[%clk 0:01:37.5]} 23. Kc3 {[%clk 0:01:31.5]} 23... Nf6
{[%clk 0:01:35.7]} 24. Ne5 {[%clk 0:01:17.6]} 24... Ne4+ {[%clk 0:01:28.8]} 25.
Kc2 {[%clk 0:01:16.1]} 25... Nxf2 {[%clk 0:01:26.5]} 26. Rf1 {[%clk 0:01:06.2]}
26... Ne4 {[%clk 0:01:23.4]} 27. Rbc1 {[%clk 0:00:59.6]} 27... g5 {[%clk
0:01:21.8]} 28. Kb2 {[%clk 0:00:54.7]} 28... c3+ {[%clk 0:01:17.9]} 29. Kc2
{[%clk 0:00:51.5]} 29... Kd5 {[%clk 0:01:13.7]} 30. Kd3 {[%clk 0:00:37.6]} 30...
Rc7 {[%clk 0:01:09.4]} 31. Rc2 {[%clk 0:00:26.9]} 31... h5 {[%clk 0:00:52.9]}
32. Nc6 {[%clk 0:00:22.8]} 32... h4 {[%clk 0:00:44.8]} 33. Rfc1 {[%clk
0:00:15.4]} 33... f4 {[%clk 0:00:42.4]} 34. Rf1 {[%clk 0:00:12.1]} 34... Rcf7
{[%clk 0:00:36.7]} 35. Ne5 {[%clk 0:00:11.7]} 35... Rf5 {[%clk 0:00:33.1]} 36.
Ng6 {[%clk 0:00:10.9]} 36... R8f7 {[%clk 0:00:30.5]} 37. Ne5 {[%clk 0:00:09.4]}
37... fxe3 {[%clk 0:00:26.1]} 38. Re1 {[%clk 0:00:04.8]} 38... Rf8 {[%clk
0:00:16.2]} 39. Rxe3 {[%clk 0:00:04.7]} 39... Rf2 {[%clk 0:00:09.5]} 40. Rxe4
{[%clk 0:00:03.7]} 40... Rxc2 {[%clk 0:00:08.9]} 41. Nd7 {[%clk 0:00:02.8]}
41... Rff2 {[%clk 0:00:07.7]} 42. Nf6+ {[%clk 0:00:02.2]} 42... Kd6 {[%clk
0:00:07.1]} 43. Ne8+ {[%clk 0:00:02.2]} 43... Ke7 {[%clk 0:00:06.6]} 44. Nc7
{[%clk 0:00:01.9]} 44... Rfd2+ {[%clk 0:00:06.6]} 45. Kc4 {[%clk 0:00:02.5]}
45... Rc1 {[%clk 0:00:05.1]} 46. Rxe6+ {[%clk 0:00:03.1]} 46... Kd7 {[%clk
0:00:05]} 47. Rc6 {[%clk 0:00:02.9]} 47... c2 {[%clk 0:00:04.5]} 48. Nd5 {[%clk
0:00:03.2]} 48... Rxg2 {[%clk 0:00:04.4]} 49. Nf6+ {[%clk 0:00:03.5]} 49... Ke7
{[%clk 0:00:04.6]} 50. Kd5 {[%clk 0:00:03.4]} 50... Rf1 {[%clk 0:00:03.3]} 51.
Ng8+ {[%clk 0:00:03]} 51... Kf7 {[%clk 0:00:03.3]} 52. Nh6+ {[%clk 0:00:02.6]}
52... Kg7 {[%clk 0:00:03.6]} 53. Nf5+ {[%clk 0:00:02.3]} 53... Rxf5+ {[%clk
0:00:03.7]} 54. Ke4 {[%clk 0:00:02.8]} 54... Rf4+ {[%clk 0:00:03.6]} 55. Ke5
{[%clk 0:00:03]} 55... Rf1 {[%clk 0:00:04.5]} 56. Rc7+ {[%clk 0:00:02.3]} 56...
Kg6 {[%clk 0:00:04.4]} 57. Rc6+ {[%clk 0:00:02.4]} 57... Kh5 {[%clk 0:00:04.8]}
58. Rxc2 {[%clk 0:00:01.8]} 58... Rxc2 {[%clk 0:00:04.1]} 59. Kd5 {[%clk
0:00:02.7]} 59... Rff2 {[%clk 0:00:04.5]} 60. Kd6 {[%clk 0:00:02.9]} 60... Rxh2
{[%clk 0:00:05.4]} 61. d5 {[%clk 0:00:03.8]} 61... Rhd2 {[%clk 0:00:05.6]} 62.
Kd7 {[%clk 0:00:04.7]} 62... Rc3 {[%clk 0:00:06.1]} 63. d6 {[%clk 0:00:05.6]}
63... Rcd3 {[%clk 0:00:06.9]} 64. Kc7 {[%clk 0:00:05.6]} 64... Rxd6 {[%clk
0:00:07.8]} 65. Kb7 {[%clk 0:00:05.9]} 65... R2d4 {[%clk 0:00:08.3]} 66. Ka6
{[%clk 0:00:06.8]} 66... Rb4 {[%clk 0:00:08.1]} 67. Ka7 {[%clk 0:00:07.7]} 67...
Rdd4 {[%clk 0:00:08.6]} 68. Ka6 {[%clk 0:00:08.5]} 68... Rxa4 {[%clk 0:00:09.1]}
69. Kb7 {[%clk 0:00:09.3]} 69... Rdb4 {[%clk 0:00:09.5]} 70. Kxb6 {[%clk
0:00:10.2]} 70... Rxb5+ {[%clk 0:00:09.6]} 71. Kxb5 {[%clk 0:00:10.8]} 71... Ra1
{[%clk 0:00:10.3]} 0-1

[Event "Late-Titled-Tuesday-Blitz-August-29-2023"]
[Site "Chess.com"]
[Date "2023.08.29"]
[Round "2"]
[White "DishonorOnYourCow"]
[Black "Alexander_Moskalenko"]
[Result "0-1"]
[WhiteElo "2534"]
[BlackElo "2829"]
[TimeControl "180+1"]
[EndTime "14:19:26 PDT"]
[Termination "Alexander_Moskalenko won on time"]

1. d4 {[%clk 0:03:00.9]} 1... b6 {[%clk 0:02:59.1]} 2. c4 {[%clk 0:02:58.5]}
2... Bb7 {[%clk 0:03:00]} 3. Nf3 {[%clk 0:02:58.5]} 3... e6 {[%clk 0:03:00.6]}
4. g3 {[%clk 0:02:58.7]} 4... f5 {[%clk 0:03:00]} 5. Bg2 {[%clk 0:02:58.7]} 5...
Bb4+ {[%clk 0:03:00.7]} 6. Nbd2 {[%clk 0:02:57.5]} 6... Nf6 {[%clk 0:03:00.3]}
7. O-O {[%clk 0:02:57.2]} 7... Bxd2 {[%clk 0:03:01]} 8. Bxd2 {[%clk 0:02:57.1]}
8... O-O {[%clk 0:03:01.9]} 9. b4 {[%clk 0:02:40.9]} 9... Be4 {[%clk 0:02:40]}
10. Qb3 {[%clk 0:02:32.3]} 10... d6 {[%clk 0:02:39.6]} 11. Bc3 {[%clk
0:02:28.9]} 11... Nbd7 {[%clk 0:02:33.9]} 12. Nd2 {[%clk 0:02:26.4]} 12... Bxg2
{[%clk 0:02:33.5]} 13. Kxg2 {[%clk 0:02:27.3]} 13... Qe8 {[%clk 0:02:34.3]} 14.
Rae1 {[%clk 0:02:24.7]} 14... Ne4 {[%clk 0:02:26.3]} 15. f3 {[%clk 0:01:54.6]}
15... Nxd2 {[%clk 0:02:24.8]} 16. Bxd2 {[%clk 0:01:54.5]} 16... Qg6 {[%clk
0:02:20.4]} 17. Qd3 {[%clk 0:01:52.5]} 17... e5 {[%clk 0:02:15.2]} 18. e4 {[%clk
0:01:45.6]} 18... fxe4 {[%clk 0:02:13.6]} 19. Qxe4 {[%clk 0:01:45.4]} 19... Qxe4
{[%clk 0:02:11.9]} 20. Rxe4 {[%clk 0:01:46]} 20... exd4 {[%clk 0:02:02.3]} 21.
Rxd4 {[%clk 0:01:46.9]} 21... Rae8 {[%clk 0:02:01.9]} 22. Re1 {[%clk 0:01:46.6]}
22... Rxe1 {[%clk 0:01:57.9]} 23. Bxe1 {[%clk 0:01:47.5]} 23... Re8 {[%clk
0:01:58.2]} 24. Kf2 {[%clk 0:01:47.3]} 24... Ne5 {[%clk 0:01:57.9]} 25. Bc3
{[%clk 0:01:42.2]} 25... a6 {[%clk 0:01:48.2]} 26. Re4 {[%clk 0:01:30.9]} 26...
Kf7 {[%clk 0:01:33.8]} 27. Kg2 {[%clk 0:01:14]} 27... g6 {[%clk 0:01:31]} 28. c5
{[%clk 0:01:07.8]} 28... bxc5 {[%clk 0:01:23.7]} 29. bxc5 {[%clk 0:01:08.7]}
29... Nd3 {[%clk 0:01:24.3]} 30. Rxe8 {[%clk 0:01:04.7]} 30... Kxe8 {[%clk
0:01:25.2]} 31. cxd6 {[%clk 0:01:05.1]} 31... cxd6 {[%clk 0:01:26.1]} 32. f4
{[%clk 0:00:59]} 32... Ke7 {[%clk 0:01:26.4]} 33. Kf3 {[%clk 0:00:58.4]} 33...
Ke6 {[%clk 0:01:26.8]} 34. Ke4 {[%clk 0:00:57.8]} 34... Nf2+ {[%clk 0:01:23]}
35. Kf3 {[%clk 0:00:57.5]} 35... Nd3 {[%clk 0:01:23]} 36. Ke4 {[%clk 0:00:57.4]}
36... Nc5+ {[%clk 0:01:23.7]} 37. Kd4 {[%clk 0:00:56.6]} 37... Nd7 {[%clk
0:01:24.3]} 38. Kc4 {[%clk 0:00:53.7]} 38... h5 {[%clk 0:01:20]} 39. Kb4 {[%clk
0:00:52.1]} 39... Nc5 {[%clk 0:01:18.5]} 40. Bd4 {[%clk 0:00:50.7]} 40... Kd5
{[%clk 0:01:18.5]} 41. Bg1 {[%clk 0:00:26.5]} 41... Kc6 {[%clk 0:01:12.6]} 42.
h3 {[%clk 0:00:25.5]} 42... Ne4 {[%clk 0:00:43.1]} 43. g4 {[%clk 0:00:23]} 43...
hxg4 {[%clk 0:00:42.9]} 44. hxg4 {[%clk 0:00:23.9]} 44... Nf6 {[%clk 0:00:43.6]}
45. g5 {[%clk 0:00:21.8]} 45... Nd5+ {[%clk 0:00:41.9]} 46. Ka5 {[%clk
0:00:22.1]} 46... Kb7 {[%clk 0:00:38.8]} 47. Bh2 {[%clk 0:00:17.5]} 47... Ne3
{[%clk 0:00:38.1]} 48. Bg1 {[%clk 0:00:14.6]} 48... Nf5 {[%clk 0:00:38.4]} 49.
Bf2 {[%clk 0:00:14.2]} 49... d5 {[%clk 0:00:38.8]} 50. a3 {[%clk 0:00:11.8]}
50... Kc6 {[%clk 0:00:26.3]} 51. Kxa6 {[%clk 0:00:11.7]} 51... d4 {[%clk
0:00:26.9]} 52. a4 {[%clk 0:00:06.8]} 52... d3 {[%clk 0:00:27]} 53. Be1 {[%clk
0:00:07.2]} 53... Nd4 {[%clk 0:00:21.6]} 54. a5 {[%clk 0:00:04.6]} 54... Nf3
{[%clk 0:00:17.9]} 55. Bc3 {[%clk 0:00:05.1]} 55... d2 {[%clk 0:00:17.4]} 56.
Bxd2 {[%clk 0:00:05.5]} 56... Nxd2 {[%clk 0:00:18.3]} 57. Ka7 {[%clk 0:00:02.4]}
57... Ne4 {[%clk 0:00:15.1]} 58. f5 {[%clk 0:00:01.3]} 58... gxf5 {[%clk
0:00:14.6]} 59. g6 {[%clk 0:00:02.2]} 59... Nf6 {[%clk 0:00:14.9]} 60. a6 {[%clk
0:00:03.1]} 60... Kc7 {[%clk 0:00:12.9]} 61. Ka8 {[%clk 0:00:03.4]} 61... f4
{[%clk 0:00:12.2]} 62. g7 {[%clk 0:00:03.4]} 62... f3 {[%clk 0:00:11.7]} 63.
g8=Q {[%clk 0:00:01.1]} 63... Nxg8 {[%clk 0:00:11.6]} 64. a7 {[%clk 0:00:01.7]}
64... Kd7 {[%clk 0:00:10.2]} 65. Kb8 {[%clk 0:00:01.5]} 65... f2 {[%clk
0:00:09.6]} 66. a8=Q {[%clk 0:00:02.4]} 66... f1=Q {[%clk 0:00:10.2]} 67. Qa7+
{[%clk 0:00:02.5]} 67... Ke8 {[%clk 0:00:09.9]} 68. Qa4+ {[%clk 0:00:02.4]}
68... Kf8 {[%clk 0:00:09.1]} 69. Qb4+ {[%clk 0:00:02.4]} 69... Ne7 {[%clk
0:00:09.5]} 0-1

[Event "Late-Titled-Tuesday-Blitz-August-29-2023"]
[Site "Chess.com"]
[Date "2023.08.29"]
[Round "2"]
[White "HrvojeZagreb"]
[Black "komogro"]
[Result "1/2-1/2"]
[WhiteElo "2270"]
[BlackElo "2468"]
[TimeControl "180+1"]
[EndTime "14:19:31 PDT"]
[Termination "Game drawn by repetition"]

1. f4 {[%clk 0:02:55.1]} 1... d5 {[%clk 0:02:57.3]} 2. b3 {[%clk 0:02:54.9]}
2... Nf6 {[%clk 0:02:56.3]} 3. Bb2 {[%clk 0:02:55.2]} 3... c5 {[%clk 0:02:56.2]}
4. e3 {[%clk 0:02:53]} 4... Nc6 {[%clk 0:02:56.2]} 5. Bb5 {[%clk 0:02:52.6]}
5... Qc7 {[%clk 0:02:53.3]} 6. Nf3 {[%clk 0:02:50.9]} 6... Bg4 {[%clk
0:02:51.2]} 7. O-O {[%clk 0:02:50.1]} 7... e6 {[%clk 0:02:51.1]} 8. d3 {[%clk
0:02:45.9]} 8... Bd6 {[%clk 0:02:50.2]} 9. Qe1 {[%clk 0:02:43.3]} 9... Bxf3
{[%clk 0:02:49.3]} 10. Rxf3 {[%clk 0:02:43.8]} 10... O-O-O {[%clk 0:02:47.6]}
11. Bxc6 {[%clk 0:02:39.7]} 11... Qxc6 {[%clk 0:02:47]} 12. Be5 {[%clk
0:02:34.3]} 12... Qc7 {[%clk 0:02:13.2]} 13. Qc3 {[%clk 0:02:22.5]} 13... d4
{[%clk 0:02:03.7]} 14. exd4 {[%clk 0:02:08.6]} 14... Nd5 {[%clk 0:02:03.3]} 15.
Bxd6 {[%clk 0:02:01.2]} 15... Rxd6 {[%clk 0:01:56.5]} 16. Qc4 {[%clk 0:01:28.6]}
16... cxd4 {[%clk 0:01:53.8]} 17. Qxc7+ {[%clk 0:01:16.3]} 17... Kxc7 {[%clk
0:01:54.4]} 18. Na3 {[%clk 0:01:16.4]} 18... Nc3 {[%clk 0:01:41.8]} 19. Nc4
{[%clk 0:01:10.7]} 19... Rd5 {[%clk 0:01:41.6]} 20. a4 {[%clk 0:01:10.6]} 20...
b6 {[%clk 0:01:34.6]} 21. Re1 {[%clk 0:01:09.4]} 21... a6 {[%clk 0:01:32.5]} 22.
Re5 {[%clk 0:01:08.3]} 22... Rhd8 {[%clk 0:01:29.6]} 23. f5 {[%clk 0:01:03.6]}
23... b5 {[%clk 0:01:08.6]} 24. fxe6 {[%clk 0:00:46.5]} 24... fxe6 {[%clk
0:01:01.2]} 25. axb5 {[%clk 0:00:43.5]} 25... axb5 {[%clk 0:00:59.1]} 26. Rxd5
{[%clk 0:00:38.8]} 26... exd5 {[%clk 0:00:42.1]} 27. Ne5 {[%clk 0:00:33]} 27...
Re8 {[%clk 0:00:41]} 28. Rf7+ {[%clk 0:00:28]} 28... Kd6 {[%clk 0:00:40.7]} 29.
Nf3 {[%clk 0:00:26.6]} 29... Re2 {[%clk 0:00:38.6]} 30. Rxg7 {[%clk 0:00:24.4]}
30... Rxc2 {[%clk 0:00:37.2]} 31. h4 {[%clk 0:00:21.9]} 31... h5 {[%clk
0:00:30]} 32. Nxd4 {[%clk 0:00:21.2]} 32... Rd2 {[%clk 0:00:28]} 33. Rg3 {[%clk
0:00:18.5]} 33... b4 {[%clk 0:00:27.7]} 34. Kh2 {[%clk 0:00:18]} 34... Kc5
{[%clk 0:00:22.5]} 35. Ne6+ {[%clk 0:00:17.6]} 35... Kd6 {[%clk 0:00:22.1]} 36.
Nf4 {[%clk 0:00:18.2]} 36... Ne2 {[%clk 0:00:18.9]} 37. Nxe2 {[%clk 0:00:17.3]}
37... Rxe2 {[%clk 0:00:19.5]} 38. Rg5 {[%clk 0:00:17.8]} 38... Rb2 {[%clk
0:00:18.9]} 39. Rxh5 {[%clk 0:00:18.1]} 39... Rxb3 {[%clk 0:00:19.1]} 40. Rh8
{[%clk 0:00:18.8]} 40... Rxd3 {[%clk 0:00:17.8]} 41. h5 {[%clk 0:00:19.4]} 41...
b3 {[%clk 0:00:16]} 42. Rb8 {[%clk 0:00:19.5]} 42... Re3 {[%clk 0:00:09.4]} 43.
h6 {[%clk 0:00:18.7]} 43... Re6 {[%clk 0:00:08.9]} 44. Rxb3 {[%clk 0:00:16.7]}
44... Rxh6+ {[%clk 0:00:09]} 45. Kg3 {[%clk 0:00:17.2]} 45... Kc5 {[%clk
0:00:09.5]} 46. Kf2 {[%clk 0:00:16.9]} 46... Kc4 {[%clk 0:00:10.1]} 47. Rb7
{[%clk 0:00:16.7]} 47... d4 {[%clk 0:00:09.7]} 48. Rc7+ {[%clk 0:00:16.4]} 48...
Kd3 {[%clk 0:00:09.7]} 49. g4 {[%clk 0:00:16.5]} 49... Rf6+ {[%clk 0:00:08.5]}
50. Kg3 {[%clk 0:00:16.6]} 50... Ke2 {[%clk 0:00:08.9]} 51. g5 {[%clk
0:00:16.8]} 51... Rf1 {[%clk 0:00:08.3]} 52. Kg4 {[%clk 0:00:16.7]} 52... d3
{[%clk 0:00:08.5]} 53. Re7+ {[%clk 0:00:16.1]} 53... Kd1 {[%clk 0:00:07.2]} 54.
g6 {[%clk 0:00:16.1]} 54... d2 {[%clk 0:00:07.7]} 55. Rd7 {[%clk 0:00:16.6]}
55... Kc1 {[%clk 0:00:06.9]} 56. Rc7+ {[%clk 0:00:16.5]} 56... Kb1 {[%clk
0:00:07.4]} 57. Rb7+ {[%clk 0:00:16.4]} 57... Kc2 {[%clk 0:00:07.4]} 58. Rc7+
{[%clk 0:00:16.6]} 58... Kd3 {[%clk 0:00:07.9]} 59. Rd7+ {[%clk 0:00:16.6]}
59... Ke2 {[%clk 0:00:08]} 60. Kh5 {[%clk 0:00:15.4]} 60... Rh1+ {[%clk
0:00:06.1]} 61. Kg5 {[%clk 0:00:14.9]} 61... Rg1+ {[%clk 0:00:06]} 62. Kf6
{[%clk 0:00:14.7]} 62... Rg3 {[%clk 0:00:03.4]} 63. Rxd2+ {[%clk 0:00:12.3]}
63... Kxd2 {[%clk 0:00:03.4]} 64. g7 {[%clk 0:00:13.2]} 64... Ke3 {[%clk
0:00:03.9]} 65. Kf7 {[%clk 0:00:13.6]} 65... Rf3+ {[%clk 0:00:04.4]} 66. Ke8
{[%clk 0:00:14]} 66... Rg3 {[%clk 0:00:05.2]} 67. Kf8 {[%clk 0:00:14.4]} 67...
Rf3+ {[%clk 0:00:05.3]} 68. Ke8 {[%clk 0:00:14.6]} 68... Rg3 {[%clk 0:00:05.9]}
69. Kf8 {[%clk 0:00:14.7]} 69... Rf3+ {[%clk 0:00:06]} 70. Ke8 {[%clk 0:00:15]}
1/2-1/2

[Event "Late-Titled-Tuesday-Blitz-August-29-2023"]
[Site "Chess.com"]
[Date "2023.08.29"]
[Round "2"]
[White "roxannyzoldyck"]
[Black "RCone"]
[Result "0-1"]
[WhiteElo "2188"]
[BlackElo "2454"]
[TimeControl "180+1"]
[EndTime "14:19:37 PDT"]
[Termination "RCone won by resignation"]

1. e4 {[%clk 0:02:59]} 1... d6 {[%clk 0:02:44.4]} 2. d4 {[%clk 0:02:58.3]} 2...
Nf6 {[%clk 0:02:39.2]} 3. Nc3 {[%clk 0:02:57.4]} 3... g6 {[%clk 0:02:39.4]} 4.
Be3 {[%clk 0:02:56.2]} 4... c6 {[%clk 0:02:39.1]} 5. f3 {[%clk 0:02:56.1]} 5...
b5 {[%clk 0:02:39.2]} 6. Qd2 {[%clk 0:02:55.7]} 6... Nbd7 {[%clk 0:02:39.8]} 7.
O-O-O {[%clk 0:02:55]} 7... Nb6 {[%clk 0:02:40.4]} 8. Kb1 {[%clk 0:02:55.1]}
8... b4 {[%clk 0:02:40.7]} 9. Nce2 {[%clk 0:02:52.1]} 9... Nc4 {[%clk
0:02:40.3]} 10. Qc1 {[%clk 0:02:52.2]} 10... Nxe3 {[%clk 0:02:39.9]} 11. Qxe3
{[%clk 0:02:52.7]} 11... a5 {[%clk 0:02:39.5]} 12. h4 {[%clk 0:02:52]} 12... h5
{[%clk 0:02:39.3]} 13. Nh3 {[%clk 0:02:50.4]} 13... Bxh3 {[%clk 0:02:38.6]} 14.
gxh3 {[%clk 0:02:46.4]} 14... a4 {[%clk 0:02:32.7]} 15. f4 {[%clk 0:02:33.7]}
15... d5 {[%clk 0:02:28.8]} 16. Bg2 {[%clk 0:02:22.8]} 16... dxe4 {[%clk
0:01:50.8]} 17. Bxe4 {[%clk 0:02:23.6]} 17... Nxe4 {[%clk 0:01:49.1]} 18. Qxe4
{[%clk 0:02:23.4]} 18... Qd5 {[%clk 0:01:48.8]} 19. Qe5 {[%clk 0:02:09]} 19...
Qxe5 {[%clk 0:01:15.4]} 20. fxe5 {[%clk 0:01:54.2]} 20... e6 {[%clk 0:01:16]}
21. Rhf1 {[%clk 0:01:47.4]} 21... Be7 {[%clk 0:01:14.9]} 22. Ng3 {[%clk
0:01:42.9]} 22... Bxh4 {[%clk 0:01:11.2]} 23. Ne4 {[%clk 0:01:43]} 23... Be7
{[%clk 0:01:11.5]} 24. c3 {[%clk 0:01:35.2]} 24... bxc3 {[%clk 0:01:10]} 25.
bxc3 {[%clk 0:01:35.9]} 25... O-O {[%clk 0:01:05.9]} 26. Kc2 {[%clk 0:01:20.3]}
26... Rab8 {[%clk 0:01:03.6]} 27. Rb1 {[%clk 0:01:18.9]} 27... Kg7 {[%clk
0:00:59.2]} 28. c4 {[%clk 0:01:11.5]} 28... Rfd8 {[%clk 0:00:36.8]} 29. Kc3
{[%clk 0:01:02]} 29... g5 {[%clk 0:00:28.8]} 30. Rg1 {[%clk 0:00:40.8]} 30...
Kg6 {[%clk 0:00:28]} 31. Rxb8 {[%clk 0:00:35.8]} 31... Rxb8 {[%clk 0:00:27.6]}
32. Nxg5 {[%clk 0:00:34.6]} 32... Bxg5 {[%clk 0:00:26.7]} 33. h4 {[%clk
0:00:34.1]} 33... f6 {[%clk 0:00:22]} 34. exf6 {[%clk 0:00:30.2]} 34... Kxf6
{[%clk 0:00:22.9]} 35. Rxg5 {[%clk 0:00:27]} 35... a3 {[%clk 0:00:20.5]} 36. Ra5
{[%clk 0:00:19.4]} 36... Rb2 {[%clk 0:00:21]} 37. Rxa3 {[%clk 0:00:18.7]} 37...
Rh2 {[%clk 0:00:21.6]} 38. Ra5 {[%clk 0:00:14.8]} 38... Rxh4 {[%clk 0:00:21.7]}
39. Re5 {[%clk 0:00:14.7]} 39... Rh2 {[%clk 0:00:20.5]} 40. a4 {[%clk
0:00:15.2]} 40... h4 {[%clk 0:00:21.1]} 41. a5 {[%clk 0:00:14.8]} 41... h3
{[%clk 0:00:18.6]} 42. Rh5 {[%clk 0:00:13.6]} 42... Ra2 {[%clk 0:00:19.1]} 43.
Kb4 {[%clk 0:00:12.7]} 43... h2 {[%clk 0:00:18.8]} 44. a6 {[%clk 0:00:10.3]}
44... Kg6 {[%clk 0:00:16.5]} 45. Rh8 {[%clk 0:00:08.8]} 45... Rxa6 {[%clk
0:00:08.2]} 46. Rxh2 {[%clk 0:00:09.2]} 46... Kf5 {[%clk 0:00:05.1]} 47. Kc5
{[%clk 0:00:09.2]} 47... Ke4 {[%clk 0:00:05.4]} 48. Re2+ {[%clk 0:00:06.4]}
48... Kf5 {[%clk 0:00:06]} 49. Kd6 {[%clk 0:00:06.5]} 49... Ra4 {[%clk
0:00:04.5]} 50. Kc5 {[%clk 0:00:05.5]} 50... Kf6 {[%clk 0:00:04]} 51. Rc2 {[%clk
0:00:02.9]} 51... Ra6 {[%clk 0:00:03.2]} 52. Rf2+ {[%clk 0:00:03.3]} 52... Ke7
{[%clk 0:00:03.1]} 53. d5 {[%clk 0:00:04]} 53... cxd5 {[%clk 0:00:02.8]} 54.
cxd5 {[%clk 0:00:04.7]} 54... Ra5+ {[%clk 0:00:03.4]} 55. Kc4 {[%clk 0:00:04.7]}
55... Rxd5 {[%clk 0:00:04.3]} 56. Rf4 {[%clk 0:00:05.3]} 56... Kd6 {[%clk
0:00:04.7]} 57. Kc3 {[%clk 0:00:05.9]} 57... Rh5 {[%clk 0:00:04.3]} 58. Rc4
{[%clk 0:00:06.4]} 58... e5 {[%clk 0:00:04.4]} 59. Kb4 {[%clk 0:00:07]} 59...
Kd5 {[%clk 0:00:04.5]} 60. Rc5+ {[%clk 0:00:06.6]} 60... Kd4 {[%clk 0:00:04.7]}
61. Rc4+ {[%clk 0:00:06.5]} 61... Ke3 {[%clk 0:00:04.7]} 62. Kc3 {[%clk
0:00:05.8]} 62... e4 {[%clk 0:00:04.5]} 63. Ra4 {[%clk 0:00:04.1]} 63... Rd5
{[%clk 0:00:04.4]} 64. Ra1 {[%clk 0:00:04.2]} 64... Kf2 {[%clk 0:00:04.3]} 65.
Ra2+ {[%clk 0:00:02.2]} 65... Kf3 {[%clk 0:00:04.4]} 66. Ra1 {[%clk 0:00:02.9]}
66... e3 {[%clk 0:00:04.7]} 67. Rf1+ {[%clk 0:00:03.8]} 67... Kg2 {[%clk
0:00:04]} 68. Rh1 {[%clk 0:00:04.7]} 68... Kxh1 {[%clk 0:00:03.7]} 69. Kc4
{[%clk 0:00:05.5]} 69... e2 {[%clk 0:00:03.5]} 0-1